bitfinex-derivatives/quotes_ETHF0:USTF0_20250329
["timestamp","ask_amount","ask_price","bid_price","bid_amount"]
[1743251699359,1.08154,1850.1,1850.0,0.7194]
[1743251699568,2.44324,1850.1,1850.0,2.0661]
[1743251700167,1.08171,1849.8,1849.7,1.3467]
[1743251700761,1.3617,1849.9,1849.7,5.63624]
[1743251701062,1.3617,1849.9,1849.8,1.3467]
[1743251701261,1.08165,1849.9,1849.8,1.3467]
[1743251701461,1.08173,1849.8,1849.6,1.79062898]
[1743251701667,1.08173,1849.8,1849.7,1.3467]
[1743251701870,1.08173,1849.8,1849.7,8.48809441]
[1743251702067,1.08173,1849.8,1849.7,1.3467]
[1743251702768,2.4434,1849.9,1849.7,1.3467]
[1743251702968,1.08171,1849.8,1849.7,1.3467]
[1743251703467,2.44338,1849.9,1849.7,2.42847]
[1743251703664,2.44338,1849.9,1849.7,5.63627]
[1743251703867,2.44338,1849.9,1849.8,1.4152]
[1743251704571,1.08171,1849.8,1849.7,3.2078]
[1743251704768,2.43061,1849.8,1849.7,4.623]
[1743251705771,1.3489,1849.8,1849.7,5.70477]
[1743251705970,1.3489,1849.8,1849.7,4.623]
[1743251706169,2.43061,1849.8,1849.7,4.623]
[1743251706674,2.43061,1849.8,1849.7,1.4152]
[1743251707071,1.08177,1849.7,1849.6,0.70880898]
[1743251707273,3.19227,1849.7,1849.6,2.13580898]
[1743251707767,2.47927,1849.7,1849.6,0.00810898]
[1743251707966,1.08174,1849.8,1849.6,3.20151898]
[1743251708168,1.3975,1849.8,1849.7,5.71657]
[1743251708368,2.47921,1849.8,1849.7,4.6348]
[1743251708574,2.47921,1849.8,1849.7,1.427]
[1743251711874,1.08177,1849.7,1849.6,0.69270898]
[1743251712077,2.55637,1849.7,1849.6,0.69270898]
[1743251712372,2.55637,1849.7,1849.6,0.00810898]
[1743251714770,2.55637,1849.7,1849.6,1.34770898]
[1743251715366,1.4746,1849.7,1849.6,1.34770898]
[1743251715570,0.7154,1849.9,1849.6,2.42951898]
[1743251715873,1.08177,1849.7,1849.6,2.42951898]
[1743251716075,1.08177,1849.7,1849.6,1.08991898]
[1743251716675,1.08177,1849.7,1849.6,0.00810898]
[1743251717075,1.82217,1849.7,1849.6,0.00810898]
[1743251717582,3.18617,1849.7,1849.6,0.00810898]
[1743251717881,2.1044,1849.7,1849.4,0.6992]
[1743251718180,2.0875,1849.6,1849.2,3.2078]
[1743251718387,1.082,1849.3,1849.2,3.8987]
[1743251719186,1.082,1849.3,1849.2,3.2078]
[1743251720172,1.08206,1849.2,1849.1,0.00810898]
[1743251720378,1.08205,1849.3,1849.1,1.09022898]
[1743251720573,1.08206,1849.2,1849.1,0.00810898]
[1743251721283,1.81586,1849.2,1849.1,0.00810898]
[1743251721984,3.22336,1849.2,1849.1,0.00810898]
[1743251722977,6.43116,1849.2,1849.1,0.00810898]
[1743251723178,6.43116,1849.2,1849.1,4.416e-05]
[1743251724486,3.22336,1849.2,1849.1,4.416e-05]
[1743251726088,2.1413,1849.2,1849.1,4.416e-05]
[1743251726287,1.08198,1849.4,1849.2,1.08204]
[1743251726589,2.48265,1849.4,1849.3,0.6693]
[1743251727406,1.4007,1849.4,1849.1,3.20784416]
[1743251727702,2.48276,1849.3,1849.1,4.28996416]
[1743251727903,1.4007,1849.3,1849.2,1.08206]
[1743251728109,2.4827,1849.3,1849.1,4.28992416]
[1743251728599,1.4007,1849.3,1849.1,3.20784416]
[1743251728806,3.18976,1849.2,1849.1,3.20784416]
[1743251729005,1.08204,1849.3,1849.1,4.28993416]
[1743251729205,2.48267,1849.4,1849.2,1.75905]
[1743251729503,1.082,1849.3,1849.2,0.677]
[1743251729803,2.5135,1849.3,1849.2,0.677]
[1743251730704,2.5135,1849.3,1849.2,2.0386]
[1743251730904,2.5135,1849.3,1849.2,1.3616]
[1743251732399,1.08206,1849.2,1849.1,3.20784416]
[1743251732604,3.22096,1849.2,1849.1,4.55614416]
[1743251735307,3.22096,1849.2,1849.1,4.416e-05]
[1743251735701,3.95806,1849.2,1849.1,4.416e-05]
[1743251739602,2.70474,1849.5,1849.1,1.08212416]
[1743251739808,1.082,1849.3,1849.2,1.3595]
[1743251740209,2.4254,1849.3,1849.2,1.3595]
[1743251741206,1.08198,1849.4,1849.2,4.5673]
[1743251741510,1.08198,1849.4,1849.3,0.7306]
[1743251741697,1.08198,1849.4,1849.3,2.188]
[1743251742212,1.082,1849.3,1849.2,3.2078]
[1743251742506,1.08206,1849.2,1849.1,2.18804416]
[1743251743007,2.54866,1849.2,1849.1,2.18804416]
[1743251744907,2.54866,1849.2,1849.1,4.416e-05]
[1743251745103,3.23316,1849.2,1849.1,4.416e-05]
[1743251747107,6.44096,1849.2,1849.1,4.416e-05]
[1743251748114,2.54866,1849.2,1849.1,4.416e-05]
[1743251748506,8.25646,1849.2,1849.1,4.416e-05]
[1743251748909,2.70535,1849.1,1848.7,1.4236]
[1743251749213,1.0823,1848.8,1848.7,1.4236]
[1743251750608,2.5295,1848.8,1848.7,1.4236]
[1743251753010,1.08236,1848.7,1848.6,0.00810898]
[1743251753314,3.25726,1848.7,1848.6,1.45250898]
[1743251755315,1.08236,1848.7,1848.6,1.45250898]
[1743251755613,1.08236,1848.7,1848.6,4.66030898]
[1743251755813,1.08236,1848.7,1848.6,1.45250898]
[1743251758915,1.76686,1848.7,1848.6,1.45250898]
[1743251761608,0.00810898,1848.9,1848.8,1.0823]
[1743251761808,0.00810898,1848.9,1848.7,2.49642]
[1743251762008,1.09034898,1848.9,1848.8,1.4141]
[1743251762411,0.00810898,1848.9,1848.8,5.7042]
[1743251762614,0.00810898,1848.9,1848.8,6.4032]
[1743251763118,3.2078,1849.3,1848.8,5.3209]
[1743251763309,1.08218,1849.0,1848.9,1.3917]
[1743251763907,4.28998,1849.0,1848.9,1.3917]
[1743251764817,5.69538,1849.0,1848.9,1.3917]
[1743251765019,2.48758,1849.0,1848.9,1.3917]
[1743251766215,2.48758,1849.0,1848.9,2.091]
[1743251767723,1.08218,1849.0,1848.9,2.091]
[1743251769018,2.42997898,1849.1,1848.9,2.091]
[1743251769217,1.09027898,1849.1,1849.0,1.4267]
[1743251772829,1.09022898,1849.1,1849.0,1.4267]
[1743251773926,0.00810898,1849.1,1849.0,5.71668]
[1743251774125,1.09022898,1849.1,1849.0,4.6345]
[1743251774626,0.00810898,1849.1,1849.0,5.71668]
[1743251775021,0.00810898,1849.1,1849.0,12.83354811]
[1743251776128,1.08203,1849.3,1849.1,1.0821]
[1743251776322,1.08203,1849.3,1849.2,1.3931]
[1743251776523,1.08203,1849.3,1849.2,2.0973]
[1743251776722,1.082,1849.3,1849.2,2.0973]
[1743251777329,2.56079898,1849.4,1849.2,3.17936]
[1743251777523,2.56079898,1849.4,1849.3,2.1216]
[1743251779632,2.56079898,1849.4,1849.3,0.7285]
[1743251784230,2.56079898,1849.4,1849.3,2.0715]
[1743251784431,1.47880898,1849.4,1849.3,2.0715]
[1743251784736,0.00810898,1849.4,1849.3,10.2833501]
[1743251784934,1.08175,1849.8,1849.3,13.7490501]
[1743251785139,1.08177,1849.7,1849.5,3.2078]
[1743251785338,1.08176,1849.8,1849.6,2.42483]
[1743251785533,2.41966,1849.8,1849.7,2.0402]
[1743251786735,1.3379,1849.8,1849.7,3.12197]
[1743251786936,2.41961,1849.8,1849.7,3.12197]
[1743251787134,1.3379,1849.8,1849.7,3.12197]
[1743251788139,1.3379,1849.8,1849.7,6.32977]
[1743251792850,1.08161,1850.0,1849.8,1.08169]
[1743251793045,1.4523,1849.9,1849.8,1.08169]
[1743251796154,4.97999,1850.2,1850.0,1.08157]
[1743251796346,1.3813,1850.1,1849.9,0.6992]
[1743251796645,1.3813,1850.1,1850.0,1.0816]
[1743251797044,1.3813,1850.1,1849.7,3.2078]
[1743251797249,0.6918,1850.0,1849.9,1.08165]
[1743251797751,2.0731,1850.0,1849.9,1.08165]
[1743251798441,2.0731,1850.0,1849.8,1.08167]
[1743251798642,1.3813,1849.9,1849.8,1.08167]
[1743251798949,1.3813,1849.9,1849.8,8.18490807]
[1743251800551,1.3813,1849.9,1849.8,7.10323807]
[1743251800753,1.3813,1849.9,1849.7,7.0778]
[1743251800954,1.3813,1849.9,1849.7,8.15952]
[1743251801155,1.3813,1849.9,1849.7,7.0778]
[1743251801456,1.3813,1849.9,1849.8,1.08171]
[1743251801845,1.3813,1849.9,1849.8,8.05524047]
[1743251806659,1.3813,1849.9,1849.8,8.74294047]
[1743251808058,0.6918,1850.0,1849.9,1.08165]
[1743251808954,2.49548,1850.1,1850.0,1.0816]
[1743251808955,1.4139,1850.1,1850.0,1.0816]
[1743251809155,2.114,1850.1,1850.0,1.0816]
[1743251809751,2.114,1850.1,1850.0,2.4894]
[1743251809958,3.2078,1850.5,1850.4,1.08136]
[1743251810157,3.2078,1850.5,1850.3,1.08137]
[1743251810351,3.9079,1850.5,1850.4,3.18616]
[1743251810659,6.324,1850.5,1850.4,2.1048]
[1743251811058,5.2427,1850.5,1850.4,2.1048]
[1743251811259,5.2427,1850.5,1850.4,3.18616]
[1743251812055,3.2078,1850.5,1850.4,3.18616]
[1743251812860,4.5963,1850.5,1850.4,3.18616]
[1743251815656,3.2078,1851.3,1850.4,14.2309982]
[1743251815958,1.08098,1851.1,1850.9,1.08103]
[1743251816355,1.3512,1851.2,1850.8,1.08109]
[1743251816558,1.08104,1851.0,1850.8,1.77109]
[1743251816763,0.6737,1850.9,1850.8,1.77109]
[1743251817060,2.0687,1850.9,1850.8,3.20169]
[1743251821163,1.08095,1851.1,1850.8,2.1206]
[1743251821362,0.734,1851.1,1851.0,1.08101]
[1743251821560,2.093,1851.1,1851.0,1.08101]
[1743251822062,2.093,1851.1,1851.0,2.50421]
[1743251822564,2.093,1851.1,1851.0,1.4232]
[1743251823159,2.093,1851.1,1851.0,2.50421]
[1743251823765,2.093,1851.1,1851.0,5.71201]
[1743251827261,2.093,1851.1,1851.0,2.50421]
[1743251830171,2.093,1851.1,1851.0,6.36621]
[1743251832769,4.28862,1851.4,1851.0,5.2852]
[1743251832973,4.28862,1851.4,1851.2,1.08086]
[1743251832974,6.35759,1851.4,1851.2,1.08086]
[1743251833173,0.7083,1851.4,1851.3,1.4705]
[1743251833368,1.78908,1851.4,1851.3,1.4705]
[1743251833769,0.7083,1851.4,1851.3,2.55134]
[1743251837571,1.08068,1851.6,1851.4,1.08076]
[1743251837773,1.80778,1851.6,1851.4,1.08076]
[1743251837974,1.80778,1851.6,1851.4,2.53896]
[1743251838381,1.80781,1851.6,1851.4,2.53898]
[1743251838585,0.7271,1851.6,1851.4,1.4582]
[1743251838877,0.6735,1851.5,1851.4,2.53898]
[1743251839472,1.75422,1851.5,1851.4,1.4582]
[1743251839672,12.94319,1851.5,1850.8,9.2058]
[1743251839872,12.94319,1851.5,1850.8,1.08109]
[1743251839873,3.2078,1851.3,1850.8,1.08109]
[1743251840070,3.2078,1851.3,1850.7,0.74010898]
[1743251840071,1.3739,1851.2,1850.7,0.74010898]
[1743251840274,1.08097,1851.1,1850.9,1.08107]
[1743251840677,1.08107,1850.9,1850.7,1.82126898]
[1743251840880,0.6735,1850.8,1850.7,1.82126898]
[1743251841978,0.6735,1850.8,1850.7,3.18686898]
[1743251842579,0.6735,1850.8,1850.7,0.00810898]
[1743251842580,1.75463,1850.8,1850.7,0.00810898]
[1743251842878,1.3907,1850.8,1850.5,1.08129]
[1743251843174,1.3907,1850.8,1850.7,1.08119]
[1743251843175,0.6735,1850.8,1850.7,1.08119]
[1743251843369,0.7172,1851.1,1850.9,1.08102]
[1743251843574,0.7172,1851.1,1850.7,3.2078]
[1743251843575,0.7172,1851.1,1850.8,1.0811]
[1743251843878,1.08108,1850.9,1850.7,4.28896]
[1743251844077,1.08108,1850.9,1850.8,0.00810898]
[1743251844279,1.08105,1851.0,1850.8,0.00810898]
[1743251845680,1.08107,1850.9,1850.8,0.00810898]
[1743251845877,1.75237,1850.9,1850.8,0.00810898]
[1743251847183,0.6713,1850.9,1850.8,0.00810898]
[1743251847376,1.75237,1850.9,1850.8,0.00810898]
[1743251849686,0.6713,1850.9,1850.8,1.08923898]
[1743251849889,0.6713,1850.9,1850.8,2.55653898]
[1743251850186,2.088,1850.9,1850.8,3.26513898]
[1743251851480,2.088,1850.9,1850.8,2.18400898]
[1743251851883,2.088,1850.9,1850.8,3.26513898]
[1743251852081,2.088,1850.9,1850.8,2.18400898]
[1743251852382,2.088,1850.9,1850.8,3.26513898]
[1743251853282,2.088,1850.9,1850.8,2.18400898]
[1743251853979,3.16907,1850.9,1850.8,0.00810898]
[1743251854682,6.37687,1850.9,1850.8,0.00810898]
[1743251854989,3.16907,1850.9,1850.8,0.00810898]
[1743251855784,1.08124,1850.6,1850.3,3.9091]
[1743251855991,1.3748,1850.5,1850.3,3.9091]
[1743251856286,1.08136,1850.4,1850.3,3.9091]
[1743251856487,1.08136,1850.4,1850.3,3.2078]
[1743251856789,1.08148,1850.2,1850.1,1.3647]
[1743251856989,1.08148,1850.2,1850.0,1.08158]
[1743251857186,1.4138,1850.1,1850.0,1.08968898]
[1743251857587,1.4138,1850.1,1850.0,2.42388898]
[1743251858090,2.49534,1850.1,1850.0,0.00810898]
[1743251858290,3.21834,1850.1,1850.0,0.00810898]
[1743251861485,2.49534,1850.1,1850.0,0.00810898]
[1743251861699,1.4138,1850.1,1850.0,1.08970898]
[1743251862086,1.4138,1850.1,1850.0,2.49360898]
[1743251862687,1.80643,1850.3,1850.0,1.41200898]
[1743251862688,0.725,1850.3,1850.0,1.41200898]
[1743251862889,2.108,1850.3,1850.2,1.08148]
[1743251863394,2.108,1850.3,1850.2,3.19378]
[1743251864695,3.18942,1850.3,1850.2,3.19378]
[1743251865393,2.108,1850.3,1850.2,3.19378]
[1743251865894,1.383,1850.3,1850.2,3.19378]
[1743251866999,2.46442,1850.3,1850.2,3.19378]
[1743251867199,2.46442,1850.3,1850.2,2.1123]
[1743251868796,2.46442,1850.3,1850.2,0.7351]
[1743251869295,2.46442,1850.3,1850.2,2.1796]
[1743251871901,2.46442,1850.3,1850.2,3.26108]
[1743251872200,2.46442,1850.3,1850.2,2.1796]
[1743251872497,1.383,1850.3,1850.2,3.26108]
[1743251872693,1.7802,1850.6,1850.4,1.08135]
[1743251872898,3.1374,1850.6,1850.4,1.08135]
[1743251873098,3.13734,1850.6,1850.5,1.3862]
[1743251873794,2.0561,1850.6,1850.5,2.4675]
[1743251874000,1.3572,1850.6,1850.5,2.4675]
[1743251874300,2.43843,1850.7,1850.5,2.4675]
[1743251874599,2.43843,1850.7,1850.6,2.0762]
[1743251876803,2.43843,1850.7,1850.6,3.15744]
[1743251877101,2.43843,1850.7,1850.6,2.0762]
[1743251878196,1.08124,1850.6,1850.5,3.2078]
[1743251878404,2.44174,1850.6,1850.5,3.2078]
[1743251879303,1.08142,1850.3,1850.2,0.6699]
[1743251880196,1.08142,1850.3,1850.2,2.0729]
[1743251880501,1.08142,1850.3,1850.2,0.6699]
[1743251881197,1.08142,1850.3,1850.2,2.0729]
[1743251882396,1.08148,1850.2,1850.0,8.15145898]
[1743251882705,1.3605,1850.1,1850.0,9.51305898]
[1743251882904,1.3605,1850.1,1850.0,8.15145898]
[1743251883805,1.08145,1850.3,1850.1,1.08152]
[1743251884002,1.08145,1850.3,1850.2,0.6818]
[1743251885205,4.08798,1850.5,1850.0,7.06990898]
[1743251885412,1.08151,1850.2,1850.0,8.88090898]
[1743251886509,1.08152,1850.2,1850.0,8.88088898]
[1743251886909,1.08154,1850.1,1850.0,0.00810898]
[1743251887100,1.75854,1850.1,1850.0,0.00810898]
[1743251887299,2.45374,1850.1,1850.0,0.00810898]
[1743251889210,1.08177,1849.7,1849.6,50.6496]
[1743251889612,1.08177,1849.7,1849.6,0.7146]
[1743251890409,1.08183,1849.6,1849.5,0.00810898]
[1743251890599,5.69623,1849.6,1849.5,0.00810898]
[1743251891001,2.48843,1849.6,1849.5,0.00810898]
[1743251891202,0.673,1849.6,1849.5,0.00810898]
[1743251891414,3.21590898,1849.8,1849.5,1.08999898]
[1743251891415,1.0818,1849.7,1849.5,1.08999898]
[1743251891720,1.0818,1849.7,1849.6,0.7218]
[1743251891916,1.41470898,1849.8,1849.6,0.7218]
[1743251892213,1.08177,1849.7,1849.6,0.7218]
[1743251893909,1.08183,1849.6,1849.5,0.00810898]
[1743251896110,1.08181,1849.7,1849.5,1.08997898]
[1743251896313,1.76285898,1849.8,1849.6,1.08183]
[1743251897112,1.76285898,1849.8,1849.5,1.82254898]
[1743251897310,0.00810898,1849.8,1849.6,3.2078]
[1743251897614,0.00810898,1849.8,1849.7,1.08177]
[1743251899311,0.00810898,1849.8,1849.6,8.14059]
[1743251899512,1.08983898,1849.8,1849.6,8.1406]
[1743251899712,0.00810898,1849.8,1849.7,2.41657]
[1743251900017,0.00810898,1849.8,1849.7,2.43657]
[1743251903318,3.2078,1850.1,1849.7,9.57879731]
[1743251903520,3.2078,1850.1,1850.0,1.0816]
[1743251904118,3.2078,1850.1,1850.0,2.5725]
[1743251908221,3.2078,1850.1,1850.0,1.4909]
[1743251908413,5.63754,1850.1,1850.0,0.02]
[1743251908617,6.34454,1850.1,1850.0,0.02]
[1743251913017,6.34454,1850.1,1850.0,1.3552]
[1743251913418,6.34454,1850.1,1850.0,0.02]
[1743251915521,1.08177,1849.7,1849.6,3.8856]
[1743251916827,1.08177,1849.7,1849.6,0.6778]
[1743251918725,1.79407,1849.7,1849.6,0.6778]
[1743251919627,1.79407,1849.7,1849.6,2.0759]
[1743251920131,1.08177,1849.7,1849.6,2.0759]
[1743251920725,2.54357,1849.7,1849.6,2.0759]
[1743251926034,1.08183,1849.6,1849.5,0.00810898]
[1743251926235,2.54583,1849.6,1849.5,0.00810898]
[1743251929249,1.08212,1849.1,1849.0,3.2078]
[1743251929445,2.7048,1849.5,1849.0,3.2078]
[1743251929446,1.0821,1849.2,1849.0,3.2078]
[1743251929647,2.49622,1849.1,1849.0,4.6355]
[1743251930048,1.4141,1849.1,1849.0,5.71768]
[1743251930252,1.08193,1849.5,1849.0,14.42959459]
[1743251930549,1.08193,1849.5,1849.3,1.08196]
[1743251930750,2.45583,1849.5,1849.4,2.1101]
[1743251932354,2.45579,1849.5,1849.4,2.1101]
[1743251932650,1.3739,1849.5,1849.4,3.19205]
[1743251932852,2.45579,1849.5,1849.4,2.1101]
[1743251933351,1.08993898,1849.6,1849.4,3.19203]
[1743251933653,1.08993898,1849.6,1849.5,1.4517]
[1743251934055,2.53053898,1849.6,1849.5,1.4517]
[1743251934256,1.44870898,1849.6,1849.5,1.4517]
[1743251934455,1.44870898,1849.6,1849.5,2.53359]
[1743251935149,1.44870898,1849.6,1849.5,1.4517]
[1743251935354,1.44870898,1849.6,1849.5,2.53359]
[1743251935954,1.44870898,1849.6,1849.5,1.4517]
[1743251936457,1.44870898,1849.6,1849.5,2.53359]
[1743251936651,1.44870898,1849.6,1849.5,1.4517]
[1743251937454,1.44870898,1849.6,1849.5,2.53359]
[1743251937658,0.00810898,1849.6,1849.5,2.53359]
[1743251940654,0.00810898,1849.6,1849.4,3.8775]
[1743251940848,1.08189,1849.5,1849.4,2.1307]
[1743251941053,1.41680898,1849.6,1849.5,1.08189]
[1743251941253,1.41680898,1849.6,1849.5,2.54289]
[1743251941455,1.41680898,1849.6,1849.5,1.461]
[1743251941764,1.41680898,1849.6,1849.5,2.54289]
[1743251942062,2.49863898,1849.6,1849.5,1.461]
[1743251943758,1.41680898,1849.6,1849.5,2.54289]
[1743251944667,1.08189,1849.5,1849.4,0.6697]
[1743251945166,2.53299,1849.5,1849.4,0.6697]
[1743251947069,2.53299,1849.5,1849.4,2.065]
[1743251947769,0.00810898,1849.6,1849.5,1.08189]
[1743251947972,0.00810898,1849.6,1849.5,3.16129]
[1743251948870,1.37960898,1849.6,1849.5,3.16129]
[1743251950166,1.37960898,1849.6,1849.5,2.47719]
[1743251954369,2.46143898,1849.6,1849.5,2.47719]
[1743251954572,1.08189,1849.5,1849.4,0.6697]
[1743251954764,1.08195,1849.4,1849.3,1.4387]
[1743251954965,0.6735,1849.4,1849.3,1.4387]
[1743251955170,0.6735,1849.4,1849.3,2.5207]
[1743251955571,2.0081,1849.4,1849.3,2.5207]
[1743251956375,3.09005,1849.4,1849.3,1.4387]
[1743251957271,2.0081,1849.4,1849.3,2.5207]
[1743251957472,3.09005,1849.4,1849.3,1.4387]
[1743251958274,1.08206,1849.2,1849.0,1.08215]
[1743251958477,2.41795,1849.3,1849.1,1.08212]
[1743251958672,1.3359,1849.2,1849.1,2.50032]
[1743251958871,2.41796,1849.2,1849.1,1.4182]
[1743251959472,1.3359,1849.2,1849.1,2.50032]
[1743251960179,1.3359,1849.2,1849.1,5.70812]
[1743251963271,2.41796,1849.2,1849.1,4.626]
[1743251963477,2.41796,1849.2,1848.9,0.00810898]
[1743251963478,1.08212,1849.1,1848.9,4.29811898]
[1743251963675,3.87362,1849.1,1848.9,5.74901898]
[1743251964071,2.44338,1849.0,1848.9,4.66680898]
[1743251964777,1.3612,1849.0,1848.9,5.74904898]
[1743251965186,2.44338,1849.0,1848.9,4.66680898]
[1743251965684,1.3612,1849.0,1848.9,5.74904898]
[1743251966482,2.44338,1849.0,1848.9,4.66680898]
[1743251966880,2.44338,1849.0,1848.9,1.45900898]
[1743251967984,1.3612,1849.0,1848.9,2.54124898]
[1743251968380,2.44338,1849.0,1848.9,2.54124898]
[1743251968683,2.44338,1849.0,1848.9,1.45900898]
[1743251969787,1.3612,1849.0,1848.9,1.45900898]
[1743251969981,1.3612,1849.0,1848.9,2.54124898]
[1743251970491,1.80164,1849.1,1848.9,5.74901898]
[1743251970687,1.3513,1849.0,1848.9,4.29811898]
[1743251970887,2.43348,1849.0,1848.9,3.21590898]
[1743251971184,2.43348,1849.0,1848.9,0.00810898]
[1743251971585,1.3513,1849.0,1848.9,1.09034898]
[1743251972486,1.3513,1849.0,1848.9,1.76434898]
[1743251972782,0.7195,1849.1,1848.9,0.68210898]
[1743251972981,0.00810898,1849.6,1849.0,6.54344]
[1743251972982,3.2078,1849.4,1849.0,6.54344]
[1743251973181,3.2078,1849.4,1849.3,1.082]
[1743251973384,0.00810898,1849.6,1849.3,7.0458]
[1743251973581,0.00810898,1849.6,1849.5,1.08189]
[1743251973781,0.00810898,1849.6,1849.5,1.81889]
[1743251975990,0.00810898,1849.6,1849.5,0.737]
[1743251976187,0.00810898,1849.6,1849.5,1.81889]
[1743251978789,1.34810898,1849.6,1849.5,1.81889]
[1743251979792,0.00810898,1849.6,1849.5,1.81889]
[1743251981093,3.2078,1850.1,1850.0,1.0816]
[1743251981493,4.5478,1850.1,1850.0,1.0816]
[1743251981693,1.80158,1850.4,1850.2,1.08146]
[1743251981985,1.433,1850.3,1850.2,1.08146]
[1743251982186,1.433,1850.3,1850.2,1.78246]
[1743251982393,0.69990898,1850.5,1850.4,1.08136]
[1743251982595,0.00810898,1850.5,1850.4,1.08136]
[1743251982895,0.00810898,1850.5,1850.4,4.91736]
[1743251983090,0.00810898,1850.5,1850.4,12.03824535]
[1743251984400,2.51411,1850.9,1850.6,1.08124]
[1743251984888,1.08113,1850.8,1850.5,4.28906]
[1743251985093,1.421,1850.7,1850.5,4.28906]
[1743251985293,2.5022,1850.7,1850.5,3.2078]
[1743251985498,1.421,1850.7,1850.5,4.28909]
[1743251987196,1.421,1850.7,1850.6,1.08124]
[1743251988199,1.421,1850.7,1850.5,4.28906]
[1743251988599,1.421,1850.7,1850.5,3.2078]
[1743251989502,1.421,1850.7,1850.6,1.08124]
[1743251989800,0.00810898,1850.8,1850.7,1.08119]
[1743251990003,0.00810898,1850.8,1850.7,1.81669]
[1743251990396,0.00810898,1850.8,1850.7,3.16009]
[1743251990598,1.41830898,1850.8,1850.7,2.0789]
[1743251990794,1.41830898,1850.8,1850.7,3.16009]
[1743251991602,1.41830898,1850.8,1850.7,6.36789]
[1743251992400,0.00810898,1850.8,1850.7,6.36789]
[1743251996602,1.39890898,1850.8,1850.7,6.36789]
[1743251998002,0.00810898,1850.8,1850.7,17.36404096]
[1743251998805,3.2078,1851.1,1851.0,1.08101]
[1743251999307,2.1591,1851.2,1851.1,1.08095]
[1743251999499,0.6978,1851.5,1851.2,1.08085]
[1743251999700,3.23528,1851.4,1851.3,1.4379]
[1743252000208,3.23528,1851.4,1851.2,4.29675898]
[1743252000209,3.23528,1851.4,1851.2,3.21590898]
[1743252000406,1.39955066,1851.3,1851.2,5.64069898]
[1743252001102,2.48039066,1851.3,1851.2,4.55980898]
[1743252001301,1.39955066,1851.3,1851.2,4.55980898]
[1743252002202,2.48039066,1851.3,1851.2,4.55980898]
[1743252002404,2.48039066,1851.3,1851.2,1.35200898]
[1743252003206,2.48039066,1851.3,1851.2,0.00810898]
[1743252003407,1.39955066,1851.3,1851.2,0.00810898]
[1743252003709,2.48039066,1851.3,1851.2,0.00810898]
[1743252003894,1.39955066,1851.3,1851.2,0.00810898]
[1743252004498,2.48039066,1851.3,1851.2,0.00810898]
[1743252004998,1.39955066,1851.3,1851.2,0.00810898]
[1743252006208,1.39955066,1851.3,1851.2,1.41000898]
[1743252006705,2.48039066,1851.3,1851.2,1.41000898]
[1743252007002,2.48039066,1851.3,1851.2,0.00810898]
[1743252007605,1.08109,1850.9,1850.7,3.2078]
[1743252007904,1.08119,1850.8,1850.6,2.075]
[1743252008108,1.08119,1850.7,1850.6,0.6827]
[1743252008306,1.08124,1850.6,1850.5,51.3363]
[1743252009410,1.08931898,1850.7,1850.5,51.3363]
[1743252009610,1.08931898,1850.7,1850.5,52.41759]
[1743252009910,0.00810898,1850.7,1850.5,52.41756]
[1743252010112,1.08929898,1850.7,1850.6,1.4207]
[1743252011204,0.00810898,1850.7,1850.6,2.50194]
[1743252011509,0.73480898,1850.7,1850.6,2.50194]
[1743252012708,0.00810898,1850.7,1850.6,2.50194]
[1743252013108,0.00810898,1850.7,1850.6,1.4207]
[1743252013309,1.08929898,1850.7,1850.6,1.4207]
[1743252013509,0.00810898,1850.7,1850.6,1.4207]
[1743252013707,0.00810898,1850.7,1850.6,2.50194]
[1743252014406,0.00810898,1850.7,1850.6,1.4207]
[1743252014709,0.00810898,1850.7,1850.6,2.50194]
[1743252016806,0.00810898,1850.7,1850.6,9.43117713]
[1743252019808,0.00810898,1850.7,1850.6,8.34993713]
[1743252020012,0.00810898,1850.7,1850.6,1.4207]
[1743252020213,0.73410898,1850.7,1850.6,1.4207]
[1743252020409,2.09340898,1850.7,1850.6,2.50194]
[1743252020610,2.09340898,1850.7,1850.6,1.4207]
[1743252020810,2.09340898,1850.7,1850.6,2.50194]
[1743252021113,3.17459898,1850.7,1850.5,51.02527]
[1743252021414,1.3593,1850.6,1850.5,54.23307]
[1743252021612,1.3593,1850.6,1850.5,55.68337]
[1743252022110,1.3593,1850.6,1850.4,0.00810898]
[1743252022310,4.9813,1850.5,1850.4,0.00810898]
[1743252023022,1.7735,1850.5,1850.4,0.00810898]
[1743252023810,0.6922,1850.5,1850.4,0.00810898]
[1743252024011,1.7735,1850.5,1850.4,0.00810898]
[1743252024917,1.7735,1850.5,1850.4,1.43570898]
[1743252026119,1.7735,1850.5,1850.4,0.00810898]
[1743252029921,4.9813,1850.5,1850.4,0.00810898]
[1743252030225,1.08159,1850.1,1849.9,54.84161]
[1743252030423,0.6828,1850.0,1849.9,51.01761]
[1743252030723,2.1269,1850.0,1849.9,52.40861]
[1743252031818,3.2085,1850.0,1849.9,52.40861]
[1743252032726,3.2085,1850.0,1849.9,51.327]
[1743252033925,2.1269,1850.0,1849.9,52.40865]
[1743252034128,1.08154,1850.1,1849.9,54.5348]
[1743252034431,1.08154,1850.1,1850.0,1.423]
[1743252035018,1.4503,1850.2,1850.1,1.08154]
[1743252035231,1.08148,1850.2,1850.1,3.2078]
[1743252035420,1.08148,1850.2,1850.0,3.18935]
[1743252035616,2.53178,1850.2,1850.1,1.423]
[1743252035828,1.4503,1850.2,1850.1,2.50454]
[1743252036518,2.53178,1850.2,1850.1,2.50454]
[1743252036718,2.53178,1850.2,1850.1,1.423]
[1743252036915,1.4503,1850.2,1850.1,2.50454]
[1743252037120,2.53178,1850.2,1850.1,1.423]
[1743252037821,1.4503,1850.2,1850.1,1.423]
[1743252038122,1.4503,1850.2,1850.1,2.50454]